bitfinex/quotes_BTCUSD_20251116
["timestamp","ask_amount","ask_price","bid_price","bid_amount"]
[1763310002075,0.00056553,94592.0,94591.0,0.04541874]
[1763310002277,0.00056553,94592.0,94591.0,0.36841874]
[1763310002626,0.0002,94630.0,94623.0,0.21136384]
[1763310002949,0.00033521,94630.0,94629.0,0.09944]
[1763310003168,0.00033521,94630.0,94629.0,0.109384]
[1763310003320,0.00033521,94630.0,94629.0,0.050974]
[1763310003527,0.00033521,94630.0,94629.0,0.04103]
[1763310003729,0.03075521,94630.0,94616.0,0.04103]
[1763310003935,0.02244,94617.0,94590.0,0.04103]
[1763310004151,0.21140254,94607.0,94590.0,0.04103]
[1763310004317,0.2114059,94605.0,94590.0,0.04103]
[1763310004519,0.044,94616.0,94590.0,0.56501094]
[1763310004880,0.21140405,94606.0,94590.0,0.56501094]
[1763310005021,0.01941329,94605.0,94590.0,0.56501094]
[1763310005222,0.01941329,94604.0,94590.0,0.56501094]
[1763310005422,0.02802121,94620.0,94591.0,0.10280366]
[1763310005628,0.0204127,94616.0,94612.0,0.04103]
[1763310005819,0.0194127,94615.0,94612.0,0.04103]
[1763310006020,0.0194127,94614.0,94612.0,0.04103]
[1763310006283,0.02802121,94629.0,94613.0,0.08166]
[1763310006511,0.00033521,94630.0,94613.0,0.08166]
[1763310006512,0.09561479,94628.0,94613.0,0.08166]
[1763310006714,0.01941479,94627.0,94613.0,0.08166]
[1763310007161,0.01941479,94627.0,94626.0,0.05841]
[1763310007533,0.09561479,94627.0,94626.0,0.05841]
[1763310007741,0.0762,94627.0,94626.0,0.05841]
[1763310007948,0.0762,94627.0,94612.0,0.04103]
[1763310008179,0.05242,94613.0,94590.0,0.12269]
[1763310008384,0.01940668,94612.0,94590.0,0.04103]
[1763310008661,0.323,94608.0,94590.0,0.56501094]
[1763310008881,0.23080948,94607.0,94590.0,0.56501094]
[1763310009093,0.21140531,94605.0,94590.0,0.04103]
[1763310009315,0.21142157,94598.0,94590.0,0.04103]
[1763310009521,0.044,94608.0,94580.0,0.52398094]
[1763310009738,0.21142811,94595.0,94580.0,0.52398094]
[1763310009887,0.044,94607.0,94581.0,0.04103]
[1763310010104,0.21145657,94583.0,94581.0,0.04103]
[1763310010316,0.21147326,94575.0,94571.0,0.04103]
[1763310010500,0.21147592,94574.0,94571.0,0.04148081]
[1763310010695,0.21147744,94573.0,94571.0,0.04148081]
[1763310010875,0.21147744,94573.0,94571.0,0.00045081]
[1763310011281,0.022,94572.0,94571.0,0.00045081]
[1763310011482,0.4083866,94572.0,94571.0,0.00045081]
[1763310012301,0.389,94572.0,94571.0,0.00145081]
[1763310012520,0.4083711,94572.0,94571.0,0.00145081]
[1763310012923,0.4083711,94572.0,94571.0,0.00045081]
[1763310013291,0.43068654,94572.0,94571.0,0.00045081]
[1763310013461,0.323,94549.0,94527.0,0.04103]
[1763310013798,0.21156011,94536.0,94527.0,0.04116527]
[1763310014048,0.022,94528.0,94527.0,0.00013527]
[1763310014998,0.05242,94528.0,94527.0,0.00013527]
[1763310015333,0.07170687,94528.0,94527.0,0.00113527]
[1763310015565,0.07170687,94528.0,94527.0,0.00013527]
[1763310015760,0.09391649,94528.0,94527.0,0.00061527]
[1763310015886,0.04341874,94527.0,94500.0,2.29130149]
[1763310016241,0.04341874,94527.0,94523.0,0.00013529]
[1763310016242,0.61607521,94524.0,94523.0,0.00013529]
[1763310016442,0.6575717,94524.0,94523.0,0.00013529]
[1763310017665,0.68520474,94524.0,94523.0,0.00013529]
[1763310017830,0.61415296,94524.0,94523.0,0.00013529]
[1763310018031,0.26894334,94524.0,94523.0,0.00013529]
[1763310018617,0.05735687,94524.0,94523.0,0.00013529]
[1763310019022,0.05835687,94524.0,94523.0,0.00013529]
[1763310019221,0.26994334,94524.0,94523.0,0.00013529]
[1763310019421,0.02128687,94524.0,94523.0,0.00013529]
[1763310019824,0.002,94524.0,94523.0,0.00013529]
[1763310020153,0.001,94524.0,94523.0,0.00013529]
[1763310020552,0.325,94524.0,94523.0,0.00013529]
[1763310021163,0.53558647,94524.0,94523.0,0.00013529]
[1763310021376,0.5907133,94524.0,94523.0,0.00013529]
[1763310021545,0.5917133,94524.0,94523.0,0.00013529]
[1763310021864,0.5907133,94524.0,94523.0,0.00013529]
[1763310022066,0.5897133,94524.0,94523.0,0.00013529]
[1763310025391,0.6659933,94524.0,94523.0,0.00013529]
[1763310025870,0.70941204,94524.0,94523.0,0.00013529]
[1763310026105,0.70941204,94524.0,94500.0,2.29130149]
[1763310026106,0.53463797,94501.0,94500.0,2.29130149]
[1763310026327,0.5541348,94501.0,94500.0,2.29143606]
[1763310027907,0.6304148,94501.0,94500.0,2.29143606]
[1763310028812,0.6314148,94501.0,94500.0,2.29143606]
[1763310029264,0.41977683,94501.0,94500.0,2.29143606]
[1763310029494,0.42077683,94501.0,94500.0,2.29143606]
[1763310030729,0.40064,94501.0,94500.0,2.29143606]
[1763310030929,0.32336,94501.0,94500.0,2.29143606]
[1763310031131,0.09536059,94501.0,94500.0,2.29143606]
[1763310031331,0.07628,94501.0,94500.0,2.29143606]
[1763310031986,0.07628,94501.0,94500.0,2.29207574]
[1763310032422,0.01057865,94530.0,94501.0,0.03885]
[1763310032593,0.21159816,94519.0,94501.0,0.03885]
[1763310032829,0.01910012,94518.0,94501.0,0.03885]
[1763310033028,0.07628,94517.0,94501.0,0.03885]
[1763310033273,0.01057753,94540.0,94501.0,0.11653]
[1763310033407,0.07632,94516.0,94502.0,0.10366938]
[1763310033644,0.21158882,94523.0,94502.0,0.10366938]
[1763310033883,0.34212581,94522.0,94502.0,0.10366938]
[1763310034102,0.34212581,94522.0,94501.0,0.11653]
[1763310034103,0.4184603,94521.0,94501.0,0.11653]
[1763310034317,0.323,94522.0,94501.0,0.11653]
[1763310034318,0.323,94514.0,94501.0,0.03885]
[1763310034539,0.07632,94513.0,94501.0,0.03885]
[1763310034732,0.323,94514.0,94501.0,0.03885]
[1763310034975,0.07632,94512.0,94501.0,0.03885]
[1763310035295,0.323,94514.0,94501.0,0.03885]
[1763310035504,0.02763343,94559.0,94513.0,0.05161]
[1763310035708,0.07632,94515.0,94514.0,0.04341874]
[1763310035916,0.07632,94526.0,94522.0,0.21158863]
[1763310036058,0.07632,94526.0,94514.0,0.12109874]
[1763310036059,0.07632,94526.0,94523.0,0.44430551]
[1763310036257,0.07632,94526.0,94511.0,0.03885]
[1763310036485,0.07632,94526.0,94512.0,0.04341874]
[1763310036691,0.07632,94526.0,94512.0,0.12109874]
[1763310036852,0.07632,94526.0,94511.0,0.03885]
[1763310037206,0.01920062,94525.0,94511.0,0.03885]
[1763310037616,0.01920062,94525.0,94514.0,0.001]
[1763310037972,0.01920062,94525.0,94515.0,0.00022253]
[1763310038923,0.23078573,94525.0,94515.0,0.00022253]
[1763310039189,0.07632,94526.0,94515.0,0.00022253]
[1763310039190,0.01920062,94524.0,94515.0,0.00022253]
[1763310039498,0.01920062,94523.0,94515.0,0.00122253]
[1763310039696,0.01920062,94522.0,94515.0,0.00122253]
[1763310039886,0.07632,94526.0,94515.0,0.00122253]
[1763310039887,0.01920062,94521.0,94515.0,0.00122253]
[1763310040188,0.07632,94526.0,94515.0,0.00122253]
[1763310040189,0.01920062,94520.0,94515.0,0.00122253]
[1763310040399,0.01920062,94519.0,94515.0,0.00122253]
[1763310040699,0.323,94517.0,94515.0,0.00022253]
[1763310041001,0.01920062,94516.0,94515.0,0.00122253]
[1763310041202,0.01920062,94516.0,94515.0,0.00022253]
[1763310041352,0.01920062,94516.0,94515.0,0.00122253]
[1763310041552,0.01920062,94516.0,94515.0,0.00222253]
[1763310041979,0.09548062,94516.0,94515.0,0.00022253]
[1763310042190,0.09548062,94516.0,94515.0,0.00122253]
[1763310042956,0.09548062,94516.0,94515.0,0.00072253]
[1763310043593,0.09548062,94516.0,94510.0,0.07768]
[1763310043797,0.01920062,94515.0,94510.0,0.07768]
[1763310044156,0.01920062,94514.0,94510.0,0.07768]
[1763310044434,0.09548062,94513.0,94503.0,0.04341874]
[1763310044588,0.01920062,94512.0,94501.0,0.03885]
[1763310044800,0.07628,94513.0,94500.0,2.29143606]
[1763310044801,0.01920062,94511.0,94500.0,2.29143606]
[1763310045010,0.01920062,94510.0,94500.0,2.29143606]
[1763310045207,0.01920062,94509.0,94500.0,2.29143606]
[1763310045427,0.01920062,94508.0,94500.0,2.29143606]
[1763310045606,0.01920062,94507.0,94500.0,2.29093606]
[1763310045802,0.01920062,94506.0,94500.0,2.29093606]
[1763310046006,0.01920062,94505.0,94500.0,2.29093606]
[1763310046205,0.01920062,94504.0,94500.0,2.29093606]
[1763310046433,0.01920062,94503.0,94500.0,2.29093606]
[1763310046677,0.01920062,94502.0,94500.0,2.29093606]
[1763310046974,0.01920062,94501.0,94500.0,2.29093606]
[1763310047976,0.01920062,94501.0,94500.0,2.29193606]
[1763310048341,0.01920062,94501.0,94500.0,2.29093606]
[1763310048536,0.09548062,94501.0,94500.0,2.29193606]
[1763310048761,0.01920062,94501.0,94500.0,2.29293606]
[1763310048957,0.01920062,94501.0,94500.0,2.3363548]
[1763310049651,0.01920062,94501.0,94500.0,2.28044606]
[1763310049857,0.01920062,94501.0,94500.0,2.27944606]
[1763310050071,0.57613082,94501.0,94500.0,2.28086326]
[1763310050270,0.61297397,94501.0,94500.0,2.28086326]
[1763310050512,0.57613082,94501.0,94500.0,2.27986326]
[1763310050715,0.61297397,94501.0,94500.0,2.27886326]
[1763310050887,0.61397397,94501.0,94500.0,2.27986326]
[1763310051100,0.61397397,94501.0,94500.0,2.27886326]
[1763310051303,0.61427348,94501.0,94500.0,2.27886326]
[1763310051551,0.57613082,94501.0,94500.0,2.27886326]
[1763310052305,0.13437793,94501.0,94500.0,2.27886326]
[1763310052498,0.09548062,94501.0,94500.0,2.27886326]
[1763310052726,0.30711859,94501.0,94500.0,2.27886326]
[1763310053017,0.11777285,94501.0,94500.0,2.27886326]
[1763310053217,0.09548062,94501.0,94500.0,2.27886326]
[1763310053576,0.09548062,94501.0,94500.0,2.26613518]
[1763310053898,0.09548062,94501.0,94500.0,2.18021292]
[1763310054761,0.09648062,94501.0,94500.0,2.18021292]
[1763310055107,0.09548062,94501.0,94500.0,2.18021292]
[1763310055574,0.09648062,94501.0,94500.0,2.18021292]
[1763310056140,0.09748062,94501.0,94500.0,2.18021292]
[1763310056337,0.09748062,94501.0,94500.0,1.59270239]
[1763310056544,0.09648062,94501.0,94500.0,1.56648996]
[1763310056971,0.09748062,94501.0,94500.0,1.56648996]
[1763310057174,0.09748062,94501.0,94500.0,1.01508137]
[1763310057175,0.09648062,94501.0,94500.0,1.01508137]
[1763310057373,0.13454832,94501.0,94500.0,1.01508137]
[1763310057549,0.09548062,94501.0,94500.0,1.01508137]
[1763310057953,0.09748062,94501.0,94500.0,1.01508137]
[1763310059970,0.41848062,94501.0,94500.0,1.01508137]
[1763310060195,0.44077285,94501.0,94500.0,1.01508137]
[1763310060400,0.44277285,94501.0,94500.0,1.01508137]
[1763310061125,0.44077285,94501.0,94500.0,1.01508137]
[1763310061344,0.68911285,94501.0,94500.0,1.01508137]
[1763310061495,0.69011285,94501.0,94500.0,1.01508137]
[1763310061735,0.72092788,94501.0,94500.0,1.01508137]
[1763310062149,0.72192788,94501.0,94500.0,1.01508137]
[1763310062714,0.72092788,94501.0,94500.0,0.76778137]
[1763310062935,0.72192788,94501.0,94500.0,0.76778137]
[1763310063156,0.73853517,94501.0,94500.0,0.18825628]
[1763310063373,0.72192788,94501.0,94500.0,0.18825628]
[1763310063616,0.72192788,94501.0,94490.0,0.0004]
[1763310063617,0.34299998,94500.0,94490.0,0.0004]
[1763310063823,0.53466036,94491.0,94490.0,0.0004]
[1763310064038,0.57615321,94491.0,94490.0,0.0004]
[1763310064266,0.60391528,94491.0,94490.0,0.00067826]
[1763310064904,0.89977321,94491.0,94490.0,0.00067826]
[1763310066350,0.93299039,94491.0,94490.0,0.00067826]
[1763310066822,0.91638164,94491.0,94490.0,0.00067826]
[1763310067234,0.94414371,94491.0,94490.0,0.00067826]
[1763310067384,0.91638164,94491.0,94490.0,0.00067826]
[1763310067809,0.91738164,94491.0,94490.0,0.00067826]
[1763310068009,0.91838164,94491.0,94490.0,0.00067826]
[1763310069287,0.91738164,94491.0,94490.0,0.00067826]
[1763310069487,0.82445321,94491.0,94490.0,0.00067826]
[1763310069696,0.89977321,94491.0,94490.0,0.00067826]
[1763310070393,0.90077321,94491.0,94490.0,0.00067826]
[1763310070999,0.82445321,94491.0,94490.0,0.00067826]
[1763310071195,0.90077321,94491.0,94490.0,0.00067826]
[1763310071461,0.90177321,94491.0,94490.0,0.00067826]
[1763310072658,0.89977321,94491.0,94490.0,0.00067826]
[1763310072955,0.57677321,94491.0,94490.0,0.00067826]
[1763310073521,0.89977321,94491.0,94490.0,0.00067826]
[1763310073742,0.57677321,94491.0,94490.0,0.00067826]
[1763310073917,0.89977321,94491.0,94490.0,0.00067826]
[1763310074139,0.90177321,94491.0,94490.0,0.00067826]
[1763310074360,0.9563939,94491.0,94490.0,0.00067826]
[1763310075154,0.90077321,94491.0,94490.0,0.00067826]
[1763310075336,0.82345321,94491.0,94490.0,0.00067826]
[1763310075538,0.95543346,94491.0,94490.0,0.00067826]
[1763310075885,0.9574335,94491.0,94490.0,0.00067826]
[1763310076383,0.82545321,94491.0,94490.0,0.00067826]
[1763310076587,0.90177321,94491.0,94490.0,0.00067826]
[1763310077002,0.53468277,94481.0,94480.0,0.0004]
[1763310077206,0.57617562,94481.0,94480.0,0.0004]
[1763310077407,0.57617562,94481.0,94480.0,1e-08]
[1763310077628,0.61959436,94481.0,94480.0,1e-08]
[1763310077764,0.61959436,94481.0,94460.0,0.0004]
[1763310077765,0.53470742,94470.0,94460.0,0.0004]
[1763310077973,0.57620027,94470.0,94460.0,0.0004]
[1763310078176,0.60840297,94470.0,94460.0,0.0004]
[1763310078520,0.60840297,94470.0,94469.0,75.63893841]
[1763310078521,0.6781681,94470.0,94469.0,75.63893841]
[1763310078692,0.69858046,94470.0,94469.0,75.60711528]
[1763310078904,0.69858046,94470.0,94469.0,75.12911273]
[1763310078905,0.69871545,94470.0,94469.0,75.12911273]
[1763310079102,0.69871545,94470.0,94469.0,75.0972896]
[1763310079103,0.69971545,94470.0,94469.0,75.0972896]
[1763310079311,1.22274445,94470.0,94469.0,74.26266724]
[1763310079529,1.22174445,94470.0,94469.0,74.02884411]
[1763310079678,1.10331945,94470.0,94469.0,73.55584156]
[1763310079886,1.10431945,94470.0,94469.0,71.48286184]
[1763310080103,0.69971545,94470.0,94469.0,71.40324656]
[1763310080306,0.60468165,94470.0,94469.0,69.95740045]
[1763310080517,0.63688435,94470.0,94469.0,69.95740045]
[1763310080723,0.67930309,94470.0,94469.0,69.92555434]
[1763310080926,0.85478845,94470.0,94469.0,68.66773498]
[1763310081165,0.85478845,94470.0,94469.0,68.63463652]
[1763310081381,0.86078845,94470.0,94469.0,68.60279041]
[1763310081707,0.85778845,94470.0,94469.0,68.09791877]
[1763310081907,0.85478845,94470.0,94469.0,67.26369591]
[1763310082079,0.69871545,94470.0,94469.0,67.2318498]
[1763310082282,0.70171545,94470.0,94469.0,67.20000369]
[1763310082447,0.70471545,94470.0,94469.0,67.16815758]
[1763310082647,0.70471545,94470.0,94469.0,66.69513205]
[1763310082878,1.10326145,94470.0,94469.0,65.96394529]
[1763310083048,0.64316636,94470.0,94469.0,65.96394529]
[1763310083274,0.64316636,94470.0,94469.0,65.96452958]
[1763310083557,0.73055331,94470.0,94469.0,65.96452958]
[1763310083726,0.36413457,94470.0,94469.0,65.96452958]
[1763310084046,0.28817308,94470.0,94469.0,65.96452958]
[1763310084247,0.07546566,94470.0,94469.0,65.96452958]
[1763310084486,0.29566053,94470.0,94469.0,65.96452958]
[1763310084626,0.37191338,94470.0,94469.0,65.96452958]
[1763310084825,0.36532007,94470.0,94469.0,65.96452958]
[1763310085007,0.41073881,94470.0,94469.0,65.96452958]
[1763310085215,0.40856867,94470.0,94469.0,65.96452958]
[1763310085415,0.43391511,94470.0,94469.0,65.96452958]
[1763310085618,0.80994107,94470.0,94469.0,65.96452958]
[1763310085824,0.73458107,94470.0,94469.0,65.96452958]
[1763310086465,0.67418968,94470.0,94469.0,65.96452958]
[1763310086843,0.70923463,94470.0,94469.0,65.96452958]
[1763310087064,0.73458107,94470.0,94469.0,65.96452958]
[1763310087549,0.33511738,94470.0,94469.0,65.96452958]
[1763310087765,0.28557977,94470.0,94469.0,65.96452958]
[1763310088189,0.28357977,94470.0,94469.0,65.96452958]
[1763310088420,0.28457977,94470.0,94469.0,65.96452958]
[1763310088647,0.28557977,94470.0,94469.0,65.96452958]
[1763310088817,0.07387235,94470.0,94469.0,65.96452958]
[1763310089021,0.37358012,94470.0,94469.0,65.96452958]
[1763310089224,0.39587235,94470.0,94469.0,65.96452958]
[1763310089515,0.07280354,94470.0,94469.0,65.96452958]
[1763310089672,0.861274,94470.0,94469.0,64.4447852]
[1763310089854,0.52076395,94470.0,94469.0,64.41294542]
[1763310090241,0.52176395,94470.0,94469.0,64.41294542]
[1763310091498,0.52276395,94470.0,94469.0,64.41294542]
[1763310091854,0.52476395,94470.0,94469.0,64.41294542]
[1763310092089,0.5143625,94470.0,94469.0,64.41294542]
[1763310092290,0.51922801,94470.0,94469.0,64.41294542]
[1763310092671,0.49841813,94470.0,94469.0,63.71575439]
[1763310092877,0.52476458,94470.0,94469.0,63.67958585]
[1763310093102,0.44730089,94470.0,94469.0,63.67958585]
[1763310093514,0.12646282,94470.0,94469.0,63.64775227]
[1763310093710,0.12846282,94470.0,94469.0,63.64775227]
[1763310093925,0.49488156,94470.0,94469.0,63.64775227]
[1763310094438,0.49288156,94470.0,94469.0,63.64775227]
[1763310094642,0.51522801,94470.0,94469.0,63.64775227]
[1763310094843,0.51622801,94470.0,94469.0,63.64775227]
[1763310095013,0.51722801,94470.0,94469.0,63.64775227]
[1763310095413,0.59358801,94470.0,94469.0,63.64775227]
[1763310095868,0.77059262,94470.0,94469.0,62.93239522]
[1763310096090,0.77059262,94470.0,94469.0,62.90056164]
[1763310096398,0.77059262,94470.0,94469.0,62.820277]
[1763310096604,0.77059262,94470.0,94469.0,62.78843679]
[1763310096780,0.77059262,94470.0,94469.0,62.12099791]
[1763310097008,1.02128438,94470.0,94469.0,62.0891577]
[1763310097204,1.00466662,94470.0,94469.0,62.05731749]
[1763310097405,1.00466662,94470.0,94469.0,61.99999582]
[1763310097406,0.72729262,94470.0,94469.0,61.99999582]
[1763310097606,0.52329262,94470.0,94469.0,61.96815561]
[1763310097827,0.52329262,94470.0,94469.0,61.22902299]
[1763310097828,0.52129262,94470.0,94469.0,61.22902299]
[1763310098030,2.12897462,94470.0,94469.0,61.19718278]
[1763310098308,0.64299262,94470.0,94469.0,61.16534257]
[1763310098512,0.64299262,94470.0,94469.0,61.13350236]
[1763310098726,0.64499262,94470.0,94469.0,61.13350236]
[1763310098872,0.64299262,94470.0,94469.0,61.13350236]
[1763310099078,0.52329262,94470.0,94469.0,61.13350236]
[1763310099280,0.65454062,94470.0,94469.0,61.13350236]
[1763310099473,0.63080156,94470.0,94469.0,61.13350236]
[1763310099905,0.15980378,94470.0,94469.0,61.13350236]
[1763310100074,0.18615023,94470.0,94469.0,61.13350236]
[1763310100282,0.20276844,94470.0,94469.0,61.13350236]
[1763310100468,0.19776844,94470.0,94469.0,61.13350236]
[1763310100664,0.20176844,94470.0,94469.0,61.13350236]
[1763310101082,0.52276844,94470.0,94469.0,61.13350236]
[1763310101839,0.52076844,94470.0,94469.0,61.13350236]
[1763310102082,0.52276844,94470.0,94469.0,61.13350236]
[1763310102264,0.52076844,94470.0,94469.0,61.13350236]
[1763310102854,0.47475414,94470.0,94469.0,61.13350236]
[1763310103054,0.4913711,94470.0,94469.0,61.13350236]
[1763310103257,0.4903711,94470.0,94469.0,61.13350236]
[1763310103610,0.4923711,94470.0,94469.0,61.13350236]
[1763310103817,0.4943711,94470.0,94469.0,61.13350236]
[1763310104048,0.4923711,94470.0,94469.0,61.13350236]
[1763310104231,0.4903711,94470.0,94469.0,61.13350236]
[1763310104403,0.52574012,94470.0,94469.0,61.13350236]
[1763310104778,0.92325612,94470.0,94469.0,60.43377863]
[1763310105161,0.92525612,94470.0,94469.0,60.43337365]
[1763310105313,1.07597612,94470.0,94469.0,60.34738858]
[1763310105495,0.92325612,94470.0,94469.0,59.62514331]
[1763310105694,0.92225612,94470.0,94469.0,59.59162738]
[1763310105934,0.92208271,94470.0,94469.0,59.55978738]
[1763310106235,0.71629976,94470.0,94469.0,58.94662939]
[1763310106409,0.71429976,94470.0,94469.0,58.94662939]
[1763310106815,0.71429976,94470.0,94469.0,58.29777592]
[1763310107017,0.71629976,94470.0,94469.0,58.29777592]
[1763310107184,0.71629976,94470.0,94469.0,58.26593219]
[1763310107386,0.71429976,94470.0,94469.0,58.23408846]
[1763310107635,0.71629976,94470.0,94469.0,57.56209137]
[1763310107836,0.71429976,94470.0,94469.0,57.53024764]
[1763310108163,0.71429976,94470.0,94469.0,57.49840391]
[1763310108164,0.96359976,94470.0,94469.0,57.49840391]
[1763310108532,0.96159976,94470.0,94469.0,56.86459571]
[1763310108830,0.96459976,94470.0,94469.0,56.80090825]
[1763310109052,0.96159976,94470.0,94469.0,53.41693223]
[1763310109222,0.93801316,94470.0,94469.0,52.11782974]
[1763310109423,0.93801316,94470.0,94469.0,51.55539941]
[1763310109424,0.90416869,94470.0,94469.0,51.55539941]
[1763310109676,0.90416869,94470.0,94469.0,50.81654909]
[1763310109677,0.93999871,94470.0,94469.0,50.81654909]
[1763310109893,0.93999871,94470.0,94469.0,50.78469877]
[1763310109894,0.91577529,94470.0,94469.0,50.78469877]
[1763310110115,0.91777529,94470.0,94469.0,50.75284845]
[1763310110557,0.91377529,94470.0,94469.0,50.75284845]
[1763310110993,0.91677529,94470.0,94469.0,50.75284845]
[1763310111216,0.91377529,94470.0,94469.0,50.75284845]
[1763310111775,0.91677529,94470.0,94469.0,50.75284845]
[1763310111903,0.74262429,94470.0,94469.0,50.75284845]
[1763310112107,0.72800506,94470.0,94469.0,50.75284845]
[1763310112504,0.3237563,94470.0,94469.0,50.75284845]
[1763310112714,0.66496936,94470.0,94469.0,50.75284845]
[1763310112941,0.09466936,94470.0,94469.0,50.75284845]
[1763310113149,0.08913281,94470.0,94469.0,50.75284845]
[1763310113356,0.25485281,94470.0,94469.0,50.75284845]
[1763310113523,0.29827155,94470.0,94469.0,50.75284845]
[1763310113929,0.29627155,94470.0,94469.0,50.75284845]
[1763310114552,0.29827155,94470.0,94469.0,50.75284845]
[1763310114871,0.29627155,94470.0,94469.0,50.22582322]
[1763310115172,0.31489103,94470.0,94469.0,50.22582322]
[1763310115413,0.78869103,94470.0,94469.0,50.22582322]
[1763310115593,0.80931014,94470.0,94469.0,50.22582322]
[1763310115948,0.47017103,94470.0,94469.0,50.22582322]
[1763310116150,0.22348528,94470.0,94469.0,50.22582322]
[1763310116365,0.15117103,94470.0,94469.0,50.22582322]
[1763310116551,0.11534101,94470.0,94469.0,50.22582322]
[1763310116908,0.47217103,94470.0,94469.0,50.22582322]
[1763310117239,0.07315665,94470.0,94469.0,50.22582322]
[1763310117456,0.31945971,94470.0,94469.0,50.22582322]
[1763310117664,0.31945971,94470.0,94469.0,49.68047728]
[1763310117665,2.31745971,94470.0,94469.0,49.68047728]
[1763310117868,1.17504604,94470.0,94469.0,49.6473977]
[1763310118163,1.1608975,94470.0,94469.0,49.5837073]
[1763310118365,1.1588975,94470.0,94469.0,49.5518621]
[1763310118600,1.1608975,94470.0,94469.0,49.04921624]
[1763310118726,1.1588975,94470.0,94469.0,49.04921624]
[1763310118930,1.1598975,94470.0,94469.0,48.52619989]
[1763310119145,1.17951703,94470.0,94469.0,48.49435469]
[1763310119344,1.17951703,94470.0,94469.0,47.91174837]
[1763310119345,1.17651703,94470.0,94469.0,47.91174837]
[1763310119549,1.17551703,94470.0,94469.0,47.91174837]
[1763310119744,1.17751703,94470.0,94469.0,47.87990135]
[1763310119981,1.17751703,94470.0,94469.0,47.35358203]
[1763310120306,1.17751703,94470.0,94469.0,46.81926847]
[1763310120307,1.17551703,94470.0,94469.0,46.81926847]
[1763310120637,1.15215531,94470.0,94469.0,46.2583311]
[1763310120812,1.15215531,94470.0,94469.0,46.19065406]
[1763310120813,1.15415531,94470.0,94469.0,46.19065406]
[1763310121024,1.15215531,94470.0,94469.0,45.17377308]
[1763310121222,1.15215531,94470.0,94469.0,37.6234474]
[1763310121425,1.13968701,94470.0,94469.0,34.18366483]
[1763310121783,1.15422592,94470.0,94469.0,33.34718316]
[1763310122002,1.15422592,94470.0,94469.0,33.21433614]
[1763310122286,1.2879611,94470.0,94469.0,32.7413097]
[1763310122531,1.2799611,94470.0,94469.0,31.71336393]
[1763310122770,1.15322592,94470.0,94469.0,31.22366661]
[1763310122974,1.15322592,94470.0,94469.0,30.58837569]
[1763310123235,1.15322592,94470.0,94469.0,30.55651943]
[1763310123445,1.15322592,94470.0,94469.0,30.18377436]
[1763310123692,1.14922592,94470.0,94469.0,24.52481055]
[1763310123884,1.14922592,94470.0,94469.0,23.20098822]
[1763310123885,1.15322592,94470.0,94469.0,23.20098822]
[1763310124101,1.15972592,94470.0,94469.0,23.16913196]
[1763310124321,1.15972592,94470.0,94469.0,22.79881838]
[1763310124553,1.16372592,94470.0,94469.0,22.56496212]
[1763310124799,1.15972592,94470.0,94469.0,20.42891909]
[1763310125013,1.16772592,94470.0,94469.0,20.15429477]
[1763310125229,1.12430718,94470.0,94469.0,19.62007347]
[1763310125450,1.19270718,94470.0,94469.0,19.62007347]
[1763310125680,0.87338982,94470.0,94469.0,19.62007347]
[1763310125901,0.7846877,94470.0,94469.0,19.62007347]
[1763310126357,0.6949857,94470.0,94469.0,19.62007347]
[1763310126646,0.08148128,94470.0,94469.0,19.62007347]
[1763310126863,0.06786175,94470.0,94469.0,19.62007347]
[1763310127085,0.06386175,94470.0,94469.0,19.62007347]
[1763310127477,0.06686175,94470.0,94469.0,19.62007347]
[1763310127479,0.06386175,94470.0,94469.0,19.62007347]
[1763310127710,0.10728049,94470.0,94469.0,19.62007347]
[1763310127939,0.76693149,94470.0,94469.0,19.62007347]
[1763310128151,0.76193149,94470.0,94469.0,19.62007347]
[1763310128557,0.76593149,94470.0,94469.0,19.62007347]
[1763310128784,0.76593149,94470.0,94469.0,19.1307859]
[1763310128785,0.76403613,94470.0,94469.0,19.1307859]
[1763310128987,0.76403613,94470.0,94469.0,18.86274966]
[1763310129197,0.8549698,94470.0,94469.0,17.54049067]
[1763310129402,0.76393149,94470.0,94469.0,14.76501572]
[1763310129612,0.76193149,94470.0,94469.0,12.44201572]
[1763310129817,0.85660508,94470.0,94469.0,12.44201572]
[1763310130031,0.78355517,94470.0,94469.0,12.44201572]
[1763310130367,0.78055517,94470.0,94469.0,12.44201572]
[1763310130580,0.78455517,94470.0,94469.0,12.44201572]
[1763310130790,0.78055517,94470.0,94469.0,12.44201572]
[1763310131006,0.62384385,94470.0,94469.0,12.44201572]
[1763310131488,0.63084385,94470.0,94469.0,12.44201572]
[1763310131698,0.62130494,94470.0,94469.0,12.4316639]
[1763310131911,0.21138552,94470.0,94469.0,12.4316639]
[1763310132118,0.42309294,94470.0,94469.0,12.4316639]
[1763310132309,0.46951168,94470.0,94469.0,12.4316639]
[1763310132524,0.79251168,94470.0,94469.0,12.4316639]
[1763310132650,0.78951168,94470.0,94469.0,12.4316639]
[1763310133050,0.78451168,94470.0,94469.0,12.4316639]
[1763310133310,0.78851168,94470.0,94469.0,12.4316639]
[1763310133689,0.78451168,94470.0,94469.0,12.4316639]
[1763310133874,0.78751168,94470.0,94469.0,12.4316639]
[1763310134102,0.770888,94470.0,94469.0,12.4316639]
[1763310134327,0.767888,94470.0,94469.0,12.4316639]
[1763310135326,0.917688,94470.0,94469.0,12.4316639]
[1763310135758,0.920688,94470.0,94469.0,12.4316639]
[1763310136187,0.917688,94470.0,94469.0,12.4316639]
[1763310136446,0.920688,94470.0,94469.0,12.4316639]
[1763310136691,0.766888,94470.0,94469.0,12.4316639]
[1763310136972,0.05632284,94470.0,94469.0,12.4316639]
[1763310137408,0.07294203,94470.0,94469.0,12.4316639]
[1763310137649,0.05432284,94470.0,94469.0,12.4316639]
[1763310137860,0.05132284,94470.0,94469.0,12.4316639]
[1763310138086,0.02148502,94470.0,94469.0,12.4316639]
[1763310138327,0.01302481,94470.0,94469.0,12.4316639]
[1763310138523,0.02782937,94470.0,94469.0,12.4316639]
[1763310138745,0.0371044,94482.0,94469.0,12.4316639]
[1763310138974,0.0371044,94482.0,94469.0,12.43107961]
[1763310138975,0.001,94470.0,94469.0,12.43107961]
[1763310139395,4.508e-05,94482.0,94469.0,12.43107961]
[1763310140037,0.03714948,94482.0,94469.0,12.43107961]
[1763310140445,0.0371044,94481.0,94469.0,12.43107961]
[1763310140670,0.0005059,94470.0,94469.0,12.43107961]
[1763310140895,0.04710439,94480.0,94469.0,12.43107961]
[1763310140896,0.0371044,94471.0,94469.0,12.43107961]
[1763310141119,0.05564642,94473.0,94469.0,12.43107961]
[1763310141334,0.323,94479.0,94469.0,12.43107961]
[1763310141335,0.53470742,94470.0,94469.0,12.43107961]
[1763310141557,0.323,94470.0,94469.0,12.43107961]
[1763310142676,0.09267359,94478.0,94469.0,12.43107961]
[1763310142892,0.05651389,94470.0,94469.0,12.43107961]
[1763310143105,0.13291389,94470.0,94469.0,12.43107961]
[1763310143332,0.28910742,94470.0,94469.0,12.43107961]